[Event "Titled Tuesday Blitz June 20 Early 2023"]
[White "Modric, Nesa"]
[Black "Nikulina, Alena"]
[WhiteFideId "922579"]
[BlackFideId "4172051"]
[WhiteElo "2167"]
[BlackElo "1608"]
[Result "0-1"]
[Round "4"]
[TimeControl "180+2"]
[Date "2023.06.20"]
[WhiteClock "0:00:01"]
[BlackClock "0:00:11"]
[Board "221"]

1. e4 {[%clk 0:03:00]}  e5 {[%clk 0:02:59]} 2. Nf3 {[%clk 0:03:00]}  d5 {[%clk 0:02:58]} 3. exd5 {[%clk 0:02:55]}  e4 {[%clk 0:02:57]} 4. Qe2 {[%clk 0:02:49]}  Nf6 {[%clk 0:02:54]} 5. d3 {[%clk 0:02:40]}  Qxd5 {[%clk 0:02:50]} 6. Nbd2 {[%clk 0:02:25]}  Be7 {[%clk 0:02:34]} 7. Nxe4 {[%clk 0:02:20]}  O-O {[%clk 0:02:25]} 8. Bd2 {[%clk 0:01:21]}  Nc6 {[%clk 0:02:15]} 9. Bc3 {[%clk 0:01:08]}  Bg4 {[%clk 0:01:50]} 10. h3 {[%clk 0:00:47]}  Bf5 {[%clk 0:01:22]} 11. Nfd2 {[%clk 0:00:33]}  Rfe8 {[%clk 0:01:03]} 12. g4 {[%clk 0:00:18]}  Bg6 {[%clk 0:00:58]} 13. Bg2 {[%clk 0:00:18]}  Nd4 {[%clk 0:00:55]} 14. Bxd4 {[%clk 0:00:17]}  Qxd4 {[%clk 0:00:55]} 15. O-O-O {[%clk 0:00:17]}  Nd5 {[%clk 0:00:26]} 16. Kb1 {[%clk 0:00:11]}  Nf4 {[%clk 0:00:25]} 17. Qf3 {[%clk 0:00:08]}  Nxg2 {[%clk 0:00:24]} 18. Qxg2 {[%clk 0:00:08]}  a5 {[%clk 0:00:21]} 19. f4 {[%clk 0:00:08]}  f6 {[%clk 0:00:20]} 20. f5 {[%clk 0:00:08]}  Bf7 {[%clk 0:00:20]} 21. Qf2 {[%clk 0:00:07]}  Qd5 {[%clk 0:00:20]} 22. b3 {[%clk 0:00:07]}  a4 {[%clk 0:00:19]} 23. Nc3 {[%clk 0:00:07]}  Qc6 {[%clk 0:00:19]} 24. Nce4 {[%clk 0:00:03]}  axb3 {[%clk 0:00:18]} 25. axb3 {[%clk 0:00:02]}  Bb4 {[%clk 0:00:15]} 26. Nc4 {[%clk 0:00:02]}  b5 {[%clk 0:00:12]} 27. Nb2 {[%clk 0:00:01]}  Qa6 {[%clk 0:00:11]} 28. Kc1 {[%clk 0:00:01]}  Qa1# {[%clk 0:00:11]} 0-1


[Site "https://www.chess.com"]

[Event "Titled Tuesday Blitz June 20 Early 2023"]
[White "Ziatdinov, Raset"]
[Black "Floresvillar Gonzalez, Luis Migu"]
[WhiteFideId "2015323"]
[BlackFideId "5100542"]
[WhiteElo "2220"]
[BlackElo "2040"]
[Result "1-0"]
[Round "4"]
[TimeControl "180+2"]
[Date "2023.06.20"]
[WhiteClock "0:01:05"]
[BlackClock "0:00:00"]
[Board "224"]

1. e4 {[%clk 0:03:00]}  c6 {[%clk 0:02:59]} 2. d4 {[%clk 0:03:00]}  d5 {[%clk 0:03:00]} 3. exd5 {[%clk 0:02:59]}  cxd5 {[%clk 0:03:00]} 4. Bd3 {[%clk 0:02:59]}  Nc6 {[%clk 0:02:54]} 5. c3 {[%clk 0:02:59]}  Qc7 {[%clk 0:02:54]} 6. Na3 {[%clk 0:02:39]}  Nf6 {[%clk 0:02:48]} 7. Nb5 {[%clk 0:02:37]}  Qb8 {[%clk 0:02:41]} 8. g3 {[%clk 0:02:37]}  a6 {[%clk 0:02:41]} 9. Bf4 {[%clk 0:02:36]}  e5 {[%clk 0:02:40]} 10. dxe5 {[%clk 0:02:36]}  Nxe5 {[%clk 0:02:40]} 11. Nd4 {[%clk 0:02:35]}  Nxd3+ {[%clk 0:02:31]} 12. Qxd3 {[%clk 0:02:34]}  Bd6 {[%clk 0:02:32]} 13. Qe3+ {[%clk 0:02:28]}  Kd8 {[%clk 0:02:16]} 14. Bxd6 {[%clk 0:02:26]}  Qxd6 {[%clk 0:02:12]} 15. O-O-O {[%clk 0:02:26]}  Re8 {[%clk 0:02:11]} 16. Qg5 {[%clk 0:02:24]}  Kc7 {[%clk 0:01:37]} 17. f3 {[%clk 0:02:10]}  Rg8 {[%clk 0:01:09]} 18. Nge2 {[%clk 0:02:08]}  h6 {[%clk 0:01:08]} 19. Qf4 {[%clk 0:02:04]}  Qxf4+ {[%clk 0:01:06]} 20. Nxf4 {[%clk 0:02:04]}  Bd7 {[%clk 0:00:59]} 21. Rhe1 {[%clk 0:02:02]}  Rae8 {[%clk 0:00:58]} 22. Nd3 {[%clk 0:01:59]}  Rxe1 {[%clk 0:00:56]} 23. Rxe1 {[%clk 0:01:59]}  Re8 {[%clk 0:00:52]} 24. Re5 {[%clk 0:01:56]}  Rxe5 {[%clk 0:00:50]} 25. Nxe5 {[%clk 0:01:55]}  Be6 {[%clk 0:00:49]} 26. Kd2 {[%clk 0:01:52]}  Kd6 {[%clk 0:00:48]} 27. Nd3 {[%clk 0:01:48]}  Nd7 {[%clk 0:00:42]} 28. a4 {[%clk 0:01:45]}  Nc5 {[%clk 0:00:40]} 29. Nxc5 {[%clk 0:01:31]}  Kxc5 {[%clk 0:00:40]} 30. Kd3 {[%clk 0:01:32]}  Bd7 {[%clk 0:00:33]} 31. b4+ {[%clk 0:01:23]}  Kd6 {[%clk 0:00:29]} 32. a5 {[%clk 0:01:22]}  Ke5 {[%clk 0:00:23]} 33. f4+ {[%clk 0:01:21]}  Kf6 {[%clk 0:00:20]} 34. Nb3 {[%clk 0:01:21]}  g5 {[%clk 0:00:19]} 35. Nc5 {[%clk 0:01:19]}  Bc6 {[%clk 0:00:17]} 36. Ke3 {[%clk 0:01:17]}  gxf4+ {[%clk 0:00:16]} 37. Kxf4 {[%clk 0:01:16]}  Kg6 {[%clk 0:00:15]} 38. Nd3 {[%clk 0:01:14]}  f6 {[%clk 0:00:13]} 39. Nc5 {[%clk 0:01:12]}  h5 {[%clk 0:00:09]} 40. h4 {[%clk 0:01:10]}  Kf7 {[%clk 0:00:04]} 41. Ke3 {[%clk 0:01:07]}  Ke7 {[%clk 0:00:03]} 42. Nd3 {[%clk 0:01:06]}  Kd6 {[%clk 0:00:03]} 43. Kd4 {[%clk 0:01:04]}  Bd7 {[%clk 0:00:00]} 44. Nf4 {[%clk 0:01:05]} 1-0


[Site "https://www.chess.com"]

[Event "Titled Tuesday Blitz June 20 Early 2023"]
[White "Sailer, Mike"]
[Black "Calderin Gonzalez, Roberto"]
[WhiteFideId "2012901"]
[BlackFideId "5102979"]
[WhiteElo "2109"]
[BlackElo "2270"]
[Result "1-0"]
[Round "4"]
[TimeControl "180+2"]
[Date "2023.06.20"]
[WhiteClock "0:01:06"]
[BlackClock "0:01:12"]
[Board "225"]

1. d4 {[%clk 0:02:58]}  Nf6 {[%clk 0:02:40]} 2. Bg5 {[%clk 0:02:51]}  e6 {[%clk 0:02:31]} 3. Nd2 {[%clk 0:02:47]}  d5 {[%clk 0:02:30]} 4. e3 {[%clk 0:02:45]}  Be7 {[%clk 0:02:28]} 5. Bd3 {[%clk 0:02:45]}  Nbd7 {[%clk 0:02:25]} 6. c3 {[%clk 0:02:44]}  h6 {[%clk 0:02:20]} 7. Bh4 {[%clk 0:02:43]}  b6 {[%clk 0:02:14]} 8. f4 {[%clk 0:02:40]}  a6 {[%clk 0:02:14]} 9. Ngf3 {[%clk 0:02:39]}  c5 {[%clk 0:02:12]} 10. O-O {[%clk 0:02:37]}  b5 {[%clk 0:02:10]} 11. Ne5 {[%clk 0:02:32]}  Bb7 {[%clk 0:02:04]} 12. f5 {[%clk 0:02:18]}  Ne4 {[%clk 0:01:44]} 13. Nxf7 {[%clk 0:01:45]}  Kxf7 {[%clk 0:01:26]} 14. fxe6+ {[%clk 0:01:15]}  Ke8 {[%clk 0:01:24]} 15. Qh5+ {[%clk 0:01:07]}  g6 {[%clk 0:01:12]} 16. Qxg6# {[%clk 0:01:06]} 1-0


[Site "https://www.chess.com"]

[Event "Titled Tuesday Blitz June 20 Early 2023"]
[White "Milovic, Aleksandra"]
[Black "Rosh Jain"]
[WhiteFideId "933988"]
[BlackFideId "25789465"]
[WhiteElo "2000"]
[BlackElo "2233"]
[Result "0-1"]
[Round "4"]
[TimeControl "180+2"]
[Date "2023.06.20"]
[WhiteClock "0:00:29"]
[BlackClock "0:00:45"]
[Board "226"]

1. e4 {[%clk 0:03:00]}  c5 {[%clk 0:02:50]} 2. d4 {[%clk 0:02:59]}  cxd4 {[%clk 0:02:49]} 3. Nf3 {[%clk 0:03:00]}  d6 {[%clk 0:02:48]} 4. c3 {[%clk 0:02:59]}  d3 {[%clk 0:02:47]} 5. Bxd3 {[%clk 0:02:54]}  Nf6 {[%clk 0:02:47]} 6. O-O {[%clk 0:02:53]}  Nc6 {[%clk 0:02:44]} 7. Qe2 {[%clk 0:02:50]}  g6 {[%clk 0:02:44]} 8. Bg5 {[%clk 0:02:47]}  Bg7 {[%clk 0:02:44]} 9. Nbd2 {[%clk 0:02:37]}  O-O {[%clk 0:02:42]} 10. Nb3 {[%clk 0:02:32]}  Bd7 {[%clk 0:02:39]} 11. Qd2 {[%clk 0:02:24]}  Re8 {[%clk 0:02:30]} 12. Bh6 {[%clk 0:02:20]}  Bh8 {[%clk 0:02:29]} 13. Rfe1 {[%clk 0:02:17]}  Ng4 {[%clk 0:02:29]} 14. Bf4 {[%clk 0:02:10]}  Bg7 {[%clk 0:02:28]} 15. Bc4 {[%clk 0:02:06]}  Rc8 {[%clk 0:02:14]} 16. Ng5 {[%clk 0:01:57]}  Nce5 {[%clk 0:02:11]} 17. Bd5 {[%clk 0:01:49]}  h6 {[%clk 0:01:41]} 18. Bxb7 {[%clk 0:01:34]}  hxg5 {[%clk 0:01:40]} 19. Bxc8 {[%clk 0:01:33]}  Qxc8 {[%clk 0:01:36]} 20. Bxg5 {[%clk 0:01:25]}  Nc4 {[%clk 0:01:13]} 21. Qe2 {[%clk 0:01:18]}  Nge5 {[%clk 0:00:59]} 22. Nd2 {[%clk 0:01:10]}  Nxb2 {[%clk 0:00:57]} 23. Reb1 {[%clk 0:01:02]}  Ned3 {[%clk 0:00:52]} 24. Nf3 {[%clk 0:01:00]}  Qxc3 {[%clk 0:00:51]} 25. Bd2 {[%clk 0:00:58]}  Qc5 {[%clk 0:00:48]} 26. Rxb2 {[%clk 0:00:57]}  Nxb2 {[%clk 0:00:47]} 27. Be3 {[%clk 0:00:57]}  Qc4 {[%clk 0:00:47]} 28. Qxc4 {[%clk 0:00:52]}  Nxc4 {[%clk 0:00:48]} 29. Bxa7 {[%clk 0:00:51]}  Bxa1 {[%clk 0:00:47]} 30. Ne1 {[%clk 0:00:29]}  Ra8 {[%clk 0:00:45]} 0-1


[Site "https://www.chess.com"]

[Event "Titled Tuesday Blitz June 20 Early 2023"]
[White "Rodriguez Santiago, Jaime"]
[Black "Saim, Mohamed Ilias"]
[WhiteFideId "3100898"]
[BlackFideId "7900465"]
[WhiteElo "2025"]
[BlackElo "2063"]
[Result "1-0"]
[Round "4"]
[TimeControl "180+2"]
[Date "2023.06.20"]
[WhiteClock "0:01:33"]
[BlackClock "0:00:31"]
[Board "227"]

1. c4 {[%clk 0:02:57]}  c5 {[%clk 0:02:57]} 2. Nc3 {[%clk 0:02:55]}  Nc6 {[%clk 0:02:57]} 3. g3 {[%clk 0:02:55]}  Nf6 {[%clk 0:02:50]} 4. Bg2 {[%clk 0:02:55]}  g6 {[%clk 0:02:49]} 5. e4 {[%clk 0:02:55]}  Bg7 {[%clk 0:02:47]} 6. d3 {[%clk 0:02:54]}  d6 {[%clk 0:02:47]} 7. Nge2 {[%clk 0:02:54]}  O-O {[%clk 0:02:47]} 8. h3 {[%clk 0:02:54]}  a6 {[%clk 0:02:42]} 9. O-O {[%clk 0:02:54]}  Rb8 {[%clk 0:02:42]} 10. a4 {[%clk 0:02:54]}  Nb4 {[%clk 0:02:41]} 11. Be3 {[%clk 0:02:50]}  e5 {[%clk 0:02:38]} 12. f4 {[%clk 0:02:44]}  Nh5 {[%clk 0:02:24]} 13. f5 {[%clk 0:02:40]}  Nc6 {[%clk 0:02:06]} 14. g4 {[%clk 0:02:32]}  Nf4 {[%clk 0:01:56]} 15. Nxf4 {[%clk 0:02:29]}  exf4 {[%clk 0:01:57]} 16. Bxf4 {[%clk 0:02:29]}  Nd4 {[%clk 0:01:38]} 17. Nd5 {[%clk 0:02:15]}  b5 {[%clk 0:01:21]} 18. axb5 {[%clk 0:02:07]}  axb5 {[%clk 0:01:20]} 19. Ra7 {[%clk 0:01:57]}  Bb7 {[%clk 0:01:16]} 20. f6 {[%clk 0:01:37]}  Bh8 {[%clk 0:00:31]} 21. Ne7+ {[%clk 0:01:33]} 1-0


[Site "https://www.chess.com"]

[Event "Titled Tuesday Blitz June 20 Early 2023"]
[White "Clawitter, Craig"]
[Black "Porat, Tori"]
[WhiteFideId "2023105"]
[BlackFideId "30982626"]
[WhiteElo "2236"]
[BlackElo "1752"]
[Result "1-0"]
[Round "4"]
[TimeControl "180+2"]
[Date "2023.06.20"]
[WhiteClock "0:00:15"]
[BlackClock "0:00:08"]
[Board "229"]

1. e4 {[%clk 0:02:47]}  c5 {[%clk 0:02:59]} 2. Nf3 {[%clk 0:02:44]}  Nc6 {[%clk 0:02:59]} 3. d4 {[%clk 0:02:45]}  cxd4 {[%clk 0:02:59]} 4. Nxd4 {[%clk 0:02:46]}  e5 {[%clk 0:03:00]} 5. Nb5 {[%clk 0:02:46]}  d6 {[%clk 0:03:00]} 6. N1c3 {[%clk 0:02:47]}  a6 {[%clk 0:03:01]} 7. Na3 {[%clk 0:02:47]}  b5 {[%clk 0:03:01]} 8. Nd5 {[%clk 0:02:46]}  Nf6 {[%clk 0:03:02]} 9. Bg5 {[%clk 0:02:45]}  Be7 {[%clk 0:03:02]} 10. Bxf6 {[%clk 0:02:45]}  Bxf6 {[%clk 0:03:03]} 11. c3 {[%clk 0:02:38]}  Bg5 {[%clk 0:03:03]} 12. Nc2 {[%clk 0:02:32]}  Be6 {[%clk 0:02:56]} 13. a4 {[%clk 0:02:32]}  Rb8 {[%clk 0:02:54]} 14. axb5 {[%clk 0:02:23]}  axb5 {[%clk 0:02:53]} 15. Ra6 {[%clk 0:02:17]}  Qc8 {[%clk 0:02:22]} 16. Ncb4 {[%clk 0:02:06]}  Bxd5 {[%clk 0:01:55]} 17. Qxd5 {[%clk 0:01:27]}  Nxb4 {[%clk 0:01:50]} 18. Bxb5+ {[%clk 0:01:27]}  Kf8 {[%clk 0:01:44]} 19. cxb4 {[%clk 0:01:10]}  Qc1+ {[%clk 0:01:14]} 20. Ke2 {[%clk 0:00:59]}  Qxb2+ {[%clk 0:01:13]} 21. Kf3 {[%clk 0:00:50]}  Qxb4 {[%clk 0:01:09]} 22. Bc4 {[%clk 0:00:42]}  Qc3+ {[%clk 0:00:36]} 23. Kg4 {[%clk 0:00:33]}  h5+ {[%clk 0:00:26]} 24. Kxg5 {[%clk 0:00:26]}  f6+ {[%clk 0:00:19]} 25. Kf5 {[%clk 0:00:19]}  g6+ {[%clk 0:00:10]} 26. Kxf6 {[%clk 0:00:16]}  Rh7 {[%clk 0:00:08]} 27. Qg8# {[%clk 0:00:15]} 1-0


[Site "https://www.chess.com"]

[Event "Titled Tuesday Blitz June 20 Early 2023"]
[White "Lohani, Sujana"]
[Black "Thiel, Thomas"]
[WhiteFideId "12311987"]
[BlackFideId "4615964"]
[WhiteElo "1718"]
[BlackElo "2224"]
[Result "0-1"]
[Round "4"]
[TimeControl "180+2"]
[Date "2023.06.20"]
[WhiteClock "0:00:33"]
[BlackClock "0:01:13"]
[Board "231"]

1. d4 {[%clk 0:03:00]}  d5 {[%clk 0:02:41]} 2. Nf3 {[%clk 0:02:57]}  Nf6 {[%clk 0:02:38]} 3. c4 {[%clk 0:02:58]}  dxc4 {[%clk 0:02:36]} 4. e3 {[%clk 0:02:58]}  Bg4 {[%clk 0:02:34]} 5. Bxc4 {[%clk 0:02:57]}  e6 {[%clk 0:02:35]} 6. O-O {[%clk 0:02:56]}  Bd6 {[%clk 0:02:32]} 7. Nc3 {[%clk 0:02:55]}  Nc6 {[%clk 0:02:32]} 8. h3 {[%clk 0:02:48]}  Bh5 {[%clk 0:02:30]} 9. e4 {[%clk 0:02:23]}  Bxf3 {[%clk 0:02:27]} 10. Qxf3 {[%clk 0:02:18]}  Nxd4 {[%clk 0:02:26]} 11. Qd1 {[%clk 0:02:03]}  O-O {[%clk 0:02:25]} 12. Be3 {[%clk 0:02:02]}  e5 {[%clk 0:02:10]} 13. Kh1 {[%clk 0:01:50]}  c6 {[%clk 0:02:00]} 14. Bxd4 {[%clk 0:01:45]}  exd4 {[%clk 0:01:58]} 15. Qxd4 {[%clk 0:01:45]}  Qe7 {[%clk 0:01:58]} 16. Rae1 {[%clk 0:01:43]}  Be5 {[%clk 0:01:53]} 17. Qe3 {[%clk 0:01:42]}  Qb4 {[%clk 0:01:48]} 18. Bb3 {[%clk 0:01:38]}  Bxc3 {[%clk 0:01:43]} 19. bxc3 {[%clk 0:01:33]}  Qa5 {[%clk 0:01:42]} 20. f4 {[%clk 0:01:27]}  Rae8 {[%clk 0:01:41]} 21. e5 {[%clk 0:01:25]}  Nd5 {[%clk 0:01:41]} 22. Bxd5 {[%clk 0:01:21]}  cxd5 {[%clk 0:01:36]} 23. Re2 {[%clk 0:01:19]}  Re6 {[%clk 0:01:28]} 24. f5 {[%clk 0:01:14]}  Rc6 {[%clk 0:01:25]} 25. e6 {[%clk 0:01:03]}  fxe6 {[%clk 0:01:23]} 26. f6 {[%clk 0:00:52]}  Qxc3 {[%clk 0:01:18]} 27. fxg7 {[%clk 0:00:38]}  Rxf1+ {[%clk 0:01:13]} 28. Kh2 {[%clk 0:00:38]}  Qxe3 {[%clk 0:01:13]} 29. Rxe3 {[%clk 0:00:33]}  Kxg7 {[%clk 0:01:13]} 0-1


[Site "https://www.chess.com"]

[Event "Titled Tuesday Blitz June 20 Early 2023"]
[White "Nihal Sarin"]
[Black "Shimanov, Aleksandr"]
[WhiteFideId "25092340"]
[BlackFideId "4198603"]
[WhiteElo "2689"]
[BlackElo "2631"]
[Result "0-1"]
[Round "5"]
[TimeControl "180+2"]
[Date "2023.06.20"]
[WhiteClock "0:00:00"]
[BlackClock "0:00:24"]
[Board "3"]

1. Nf3 {[%clk 0:03:00]}  d5 {[%clk 0:02:59]} 2. d4 {[%clk 0:02:59]}  Nf6 {[%clk 0:02:58]} 3. c4 {[%clk 0:03:00]}  e6 {[%clk 0:02:57]} 4. Nc3 {[%clk 0:03:00]}  c5 {[%clk 0:02:56]} 5. e3 {[%clk 0:02:59]}  cxd4 {[%clk 0:02:53]} 6. exd4 {[%clk 0:02:59]}  Be7 {[%clk 0:02:53]} 7. a3 {[%clk 0:02:30]}  O-O {[%clk 0:02:26]} 8. c5 {[%clk 0:02:30]}  b6 {[%clk 0:02:26]} 9. b4 {[%clk 0:02:30]}  a5 {[%clk 0:02:25]} 10. Rb1 {[%clk 0:02:26]}  Ne4 {[%clk 0:02:21]} 11. Qc2 {[%clk 0:02:19]}  f5 {[%clk 0:02:10]} 12. Be2 {[%clk 0:02:02]}  Bf6 {[%clk 0:02:07]} 13. O-O {[%clk 0:01:57]}  axb4 {[%clk 0:02:06]} 14. axb4 {[%clk 0:01:56]}  Nc6 {[%clk 0:02:06]} 15. Rd1 {[%clk 0:01:56]}  bxc5 {[%clk 0:02:05]} 16. bxc5 {[%clk 0:01:49]}  Ba6 {[%clk 0:02:03]} 17. Rb6 {[%clk 0:01:20]}  Bxe2 {[%clk 0:02:02]} 18. Nxe2 {[%clk 0:01:20]}  Qd7 {[%clk 0:02:01]} 19. Bf4 {[%clk 0:01:02]}  Ra7 {[%clk 0:01:50]} 20. h4 {[%clk 0:00:51]}  h6 {[%clk 0:01:48]} 21. h5 {[%clk 0:00:50]}  Rfa8 {[%clk 0:01:42]} 22. Qb1 {[%clk 0:00:25]}  Ra2 {[%clk 0:01:35]} 23. Qb5 {[%clk 0:00:23]}  Rc8 {[%clk 0:01:23]} 24. Rb1 {[%clk 0:00:09]}  Kh7 {[%clk 0:01:19]} 25. Ng3 {[%clk 0:00:08]}  Qe8 {[%clk 0:01:15]} 26. Qb3 {[%clk 0:00:06]}  Ra7 {[%clk 0:01:05]} 27. Rd1 {[%clk 0:00:06]}  Rca8 {[%clk 0:00:54]} 28. Qb5 {[%clk 0:00:05]}  Ra1 {[%clk 0:00:49]} 29. Rxa1 {[%clk 0:00:02]}  Rxa1+ {[%clk 0:00:50]} 30. Nf1 {[%clk 0:00:03]}  Nc3 {[%clk 0:00:29]} 31. Qd3 {[%clk 0:00:04]}  Ne4 {[%clk 0:00:26]} 32. Qb5 {[%clk 0:00:04]}  Nc3 {[%clk 0:00:26]} 33. Qb2 {[%clk 0:00:04]}  Nxd4 {[%clk 0:00:25]} 34. Nxd4 {[%clk 0:00:03]}  Bxd4 {[%clk 0:00:25]} 35. Qc2 {[%clk 0:00:02]}  Qxh5 {[%clk 0:00:24]} 36. Be3 {[%clk 0:00:00]}  Ne2+ {[%clk 0:00:24]} 0-1


[Site "https://www.chess.com"]

[Event "Titled Tuesday Blitz June 20 Early 2023"]
[White "Zhigalko, Sergei"]
[Black "Vachier-Lagrave, Maxime"]
[WhiteFideId "13502956"]
[BlackFideId "623539"]
[WhiteElo "2626"]
[BlackElo "2739"]
[Result "0-1"]
[Round "5"]
[TimeControl "180+2"]
[Date "2023.06.20"]
[WhiteClock "0:00:00"]
[BlackClock "0:00:20"]
[Board "4"]

1. e4 {[%clk 0:03:00]}  e5 {[%clk 0:02:50]} 2. Nf3 {[%clk 0:03:00]}  Nf6 {[%clk 0:02:51]} 3. d4 {[%clk 0:02:59]}  Nxe4 {[%clk 0:02:50]} 4. Bd3 {[%clk 0:02:59]}  Nc6 {[%clk 0:02:50]} 5. d5 {[%clk 0:02:52]}  Nf6 {[%clk 0:02:50]} 6. dxc6 {[%clk 0:02:51]}  e4 {[%clk 0:02:50]} 7. cxb7 {[%clk 0:02:49]}  Bxb7 {[%clk 0:02:49]} 8. Be2 {[%clk 0:02:49]}  exf3 {[%clk 0:02:48]} 9. Bxf3 {[%clk 0:02:50]}  Bxf3 {[%clk 0:02:37]} 10. Qxf3 {[%clk 0:02:51]}  Qe7+ {[%clk 0:02:31]} 11. Be3 {[%clk 0:02:45]}  Qe4 {[%clk 0:02:31]} 12. Qxe4+ {[%clk 0:02:42]}  Nxe4 {[%clk 0:02:32]} 13. Nd2 {[%clk 0:02:42]}  Nxd2 {[%clk 0:02:25]} 14. Kxd2 {[%clk 0:02:40]}  Bd6 {[%clk 0:02:21]} 15. Rhe1 {[%clk 0:02:34]}  O-O {[%clk 0:02:18]} 16. c3 {[%clk 0:02:16]}  f6 {[%clk 0:02:14]} 17. Rad1 {[%clk 0:02:13]}  Rfe8 {[%clk 0:02:12]} 18. Kc2 {[%clk 0:02:08]}  a6 {[%clk 0:02:06]} 19. h3 {[%clk 0:02:00]}  Re6 {[%clk 0:02:04]} 20. Rd5 {[%clk 0:01:43]}  Kf7 {[%clk 0:01:58]} 21. Red1 {[%clk 0:01:43]}  Re5 {[%clk 0:01:50]} 22. c4 {[%clk 0:01:26]}  Rxd5 {[%clk 0:01:43]} 23. Rxd5 {[%clk 0:01:26]}  Ke6 {[%clk 0:01:42]} 24. b3 {[%clk 0:01:16]}  c6 {[%clk 0:01:36]} 25. Rd1 {[%clk 0:01:14]}  g5 {[%clk 0:01:36]} 26. Re1 {[%clk 0:01:07]}  Be5 {[%clk 0:01:32]} 27. Bd4 {[%clk 0:00:57]}  h5 {[%clk 0:01:28]} 28. Kd3 {[%clk 0:00:55]}  Kf5 {[%clk 0:01:18]} 29. Be3 {[%clk 0:00:45]}  Rh8 {[%clk 0:01:08]} 30. Ke2 {[%clk 0:00:43]}  g4 {[%clk 0:01:07]} 31. Rd1 {[%clk 0:00:38]}  Ke6 {[%clk 0:01:05]} 32. Bd4 {[%clk 0:00:21]}  d6 {[%clk 0:00:57]} 33. Be3 {[%clk 0:00:21]}  f5 {[%clk 0:00:56]} 34. f4 {[%clk 0:00:15]}  Bf6 {[%clk 0:00:54]} 35. Bd4 {[%clk 0:00:13]}  Bxd4 {[%clk 0:00:51]} 36. Rxd4 {[%clk 0:00:14]}  a5 {[%clk 0:00:36]} 37. h4 {[%clk 0:00:12]}  Rb8 {[%clk 0:00:35]} 38. Kd2 {[%clk 0:00:08]}  a4 {[%clk 0:00:35]} 39. Kc2 {[%clk 0:00:09]}  axb3+ {[%clk 0:00:32]} 40. axb3 {[%clk 0:00:10]}  d5 {[%clk 0:00:29]} 41. g3 {[%clk 0:00:07]}  Kd6 {[%clk 0:00:29]} 42. cxd5 {[%clk 0:00:03]}  cxd5 {[%clk 0:00:27]} 43. Ra4 {[%clk 0:00:04]}  Kc5 {[%clk 0:00:26]} 44. Ra5+ {[%clk 0:00:04]}  Kd4 {[%clk 0:00:26]} 45. Ra4+ {[%clk 0:00:03]}  Ke3 {[%clk 0:00:26]} 46. Ra5 {[%clk 0:00:03]}  Ke4 {[%clk 0:00:25]} 47. Kc3 {[%clk 0:00:03]}  d4+ {[%clk 0:00:23]} 48. Kd2 {[%clk 0:00:02]}  Rxb3 {[%clk 0:00:22]} 49. Re5+ {[%clk 0:00:03]}  Kf3 {[%clk 0:00:23]} 50. Rxf5 {[%clk 0:00:04]}  Kxg3 {[%clk 0:00:23]} 51. Rxh5 {[%clk 0:00:04]}  Kxf4 {[%clk 0:00:23]} 52. Rh8 {[%clk 0:00:04]}  Rh3 {[%clk 0:00:23]} 53. Rf8+ {[%clk 0:00:03]}  Kg3 {[%clk 0:00:23]} 54. Kd3 {[%clk 0:00:02]}  Kh2+ {[%clk 0:00:22]} 55. Kxd4 {[%clk 0:00:02]}  g3 {[%clk 0:00:23]} 56. Rg8 {[%clk 0:00:01]}  g2 {[%clk 0:00:21]} 57. Ke4 {[%clk 0:00:00]}  Rxh4+ {[%clk 0:00:20]} 0-1


[Site "https://www.chess.com"]

[Event "Titled Tuesday Blitz June 20 Early 2023"]
[White "Donchenko, Alexander"]
[Black "Grischuk, Alexander"]
[WhiteFideId "24603295"]
[BlackFideId "4126025"]
[WhiteElo "2554"]
[BlackElo "2721"]
[Result "0-1"]
[Round "5"]
[TimeControl "180+2"]
[Date "2023.06.20"]
[WhiteClock "0:00:00"]
[BlackClock "0:00:12"]
[Board "6"]

1. c4 {[%clk 0:03:00]}  Nf6 {[%clk 0:02:59]} 2. g3 {[%clk 0:03:01]}  c6 {[%clk 0:02:56]} 3. Bg2 {[%clk 0:03:01]}  d5 {[%clk 0:02:56]} 4. Nf3 {[%clk 0:03:02]}  dxc4 {[%clk 0:02:56]} 5. Qc2 {[%clk 0:03:01]}  b5 {[%clk 0:02:25]} 6. a4 {[%clk 0:03:01]}  Bb7 {[%clk 0:02:20]} 7. b3 {[%clk 0:03:00]}  cxb3 {[%clk 0:02:10]} 8. Qxb3 {[%clk 0:03:01]}  a6 {[%clk 0:02:08]} 9. O-O {[%clk 0:02:59]}  e6 {[%clk 0:02:07]} 10. Nc3 {[%clk 0:02:58]}  Nbd7 {[%clk 0:02:05]} 11. d4 {[%clk 0:02:58]}  b4 {[%clk 0:01:45]} 12. e4 {[%clk 0:02:46]}  a5 {[%clk 0:01:33]} 13. e5 {[%clk 0:02:28]}  Nd5 {[%clk 0:01:33]} 14. Ne4 {[%clk 0:02:28]}  c5 {[%clk 0:01:30]} 15. Re1 {[%clk 0:02:18]}  Qb6 {[%clk 0:01:14]} 16. Bg5 {[%clk 0:01:37]}  h6 {[%clk 0:01:07]} 17. Bd2 {[%clk 0:01:30]}  Be7 {[%clk 0:01:05]} 18. Rad1 {[%clk 0:00:58]}  Rc8 {[%clk 0:01:01]} 19. Bf1 {[%clk 0:00:36]}  O-O {[%clk 0:00:56]} 20. Bb5 {[%clk 0:00:36]}  Bc6 {[%clk 0:00:53]} 21. Bd3 {[%clk 0:00:36]}  cxd4 {[%clk 0:00:50]} 22. Bb1 {[%clk 0:00:29]}  Rfd8 {[%clk 0:00:45]} 23. Qd3 {[%clk 0:00:26]}  Nf8 {[%clk 0:00:45]} 24. Nxd4 {[%clk 0:00:24]}  Bxa4 {[%clk 0:00:38]} 25. Bxh6 {[%clk 0:00:16]}  Bxd1 {[%clk 0:00:28]} 26. Rxd1 {[%clk 0:00:10]}  gxh6 {[%clk 0:00:20]} 27. Qd2 {[%clk 0:00:10]}  Kg7 {[%clk 0:00:18]} 28. Qe2 {[%clk 0:00:06]}  Ng6 {[%clk 0:00:17]} 29. Qh5 {[%clk 0:00:06]}  Nc3 {[%clk 0:00:14]} 30. Nxc3 {[%clk 0:00:02]}  Rxd4 {[%clk 0:00:13]} 31. Rxd4 {[%clk 0:00:02]}  Qxd4 {[%clk 0:00:14]} 32. Ne4 {[%clk 0:00:00]}  Rc1+ {[%clk 0:00:12]} 0-1


[Site "https://www.chess.com"]